Cogmind - Beta 14 @@@ ROGUE MODE // 2024.11.24 @ 22:11:07 Player: naththebg Result: Destroyed by Tesla Bomb Trap Performance ------------- Evolutions (4) 2000 Regions Visited (8) 1600 Robots Destroyed (85) 425 Value Destroyed (2858) 2858 Prototype IDs (11) 220 Alien Tech Used (0) 0 Bonus (649) 649 TOTAL SCORE: 7752 Bonus ------- High Alert Combat Kills 363 Follower Combat Kills 348 Registered with UFD 300 Friendly Fire -362 Cogmind --------- Core Integrity 0/850 Matter 300/300 Energy 57/100 System Corruption 4% Temperature Cool (0) Movement Core (50) Location -6/Factory Parts ------- > --- POWER (1) -------- (None) > --- PROPULSION (4) --- (None) > --- UTILITY (7) ------ Spectral Analyzer Advanced Targeting Computer Launcher Guidance Computer > --- WEAPON (3) ------- (None) > --- INVENTORY (5) ---- Scrap Suit Matter Compressor (222) Hardened Medium Armor Plating DRS Beacon (Ready) Peak State ------------ > --- POWER ------------ Angular Momentum Engine > --- PROPULSION ------- Improved Treads Advanced Treads Overtuned Treads Medium Treads > --- UTILITY ---------- Scrap Suit High-capacity Storage Unit Matter Compressor Advanced Sensor Array Launcher Guidance Computer Improved Medium Armor Plating > --- WEAPON ----------- Subdweller Beam Cannon Rocket Launcher Missile Launcher > --- INVENTORY -------- Deuterium Engine Light Angular Momentum Engine Light Treads Light Treads Light Treads Scrap Suit Improved Heat Sink Matter Compressor Spectral Analyzer Improved Sensor Array Advanced Targeting Computer Improved Utility Shielding Hardened Medium Armor Plating Improved Medium Armor Plating Grenade Launcher Improved Datajack DRS Beacon [Rating: 57] Favorites ----------- Power Deuterium Engine Engine Deuterium Engine Propulsion Light Treads Treads Light Treads Wheel Compact Wheel Utility Launcher Guidance Computer Device Improved Sensor Array Storage Large Storage Unit Processor Launcher Guidance Computer Protection Hardened Medium Armor Plating Weapon Grenade Launcher Energy Cannon Subdweller Beam Cannon Ballistic Gun Assault Rifle Launcher Grenade Launcher Special Weapon Plasma Cutter Build | -11 -10 -10 -10 -8 -8 -8 -8 -6 ------- Run | Yrd Mat Min Sub Mat Sto Rec Scr Fac Slots Evolved 8 | . . . . 4 . . . 4 Power . | . . . . . . . . . Propulsion 2 | . . . . 1 . . . 1 Utility 5 | . . . . 3 . . . 2 Weapon 1 | . . . . . . . . 1 Parts Attached 74 | 8 . 7 3 15 6 4 9 22 Power 6 | 1 . 1 1 1 . . 1 1 Engine 6 | 1 . 1 1 1 . . 1 1 Core . | . . . . . . . . . Reactor . | . . . . . . . . . Propulsion 22 | 4 . . 1 4 3 2 4 4 Treads 19 | 2 . . . 4 3 2 4 4 Leg . | . . . . . . . . . Wheel 3 | 2 . . 1 . . . . . Hover . | . . . . . . . . . Flight . | . . . . . . . . . Utility 21 | 1 . 5 . 4 1 . 2 8 Device 5 | . . 1 . 1 . . . 3 Storage 7 | 1 . 2 . 2 . . 2 . Processor 3 | . . 1 . . . . . 2 Hackware . | . . . . . . . . . Protection 6 | . . 1 . 1 1 . . 3 Artifact . | . . . . . . . . . Weapon 25 | 2 . 1 1 6 2 2 2 9 Energy Gun . | . . . . . . . . . Energy Cannon 4 | . . . . . . 1 . 3 Ballistic Gun 5 | 2 . . . 3 . . . . Ballistic Cannon . | . . . . . . . . . Launcher 14 | . . 1 1 3 2 1 1 5 Special Weapon 2 | . . . . . . . 1 1 Impact Weapon . | . . . . . . . . . Slashing Weapon . | . . . . . . . . . Piercing Weapon . | . . . . . . . . . Special Melee Weapon . | . . . . . . . . . Unidentified Prototypes . | . . . . . . . . . Parts Lost 19 | . . . 1 . 2 . . 16 Power . | . . . . . . . . . Propulsion 9 | . . . 1 . 1 . . 7 Utility 3 | . . . . . . . . 3 Weapon 7 | . . . . . 1 . . 6 Highest Loss Streak 12 | . . . 1 . 1 . . 12 To Critical Strikes . | . . . . . . . . . Average Slot Usage (%) 97 | . 85 96 99 88 100 100 99 89 Engine 10 | . 14 14 14 9 9 9 9 5 Treads 23 | . 28 28 15 10 27 27 27 24 Wheel 2 | . . . 12 6 . . . . Device 7 | . . 9 . 8 9 9 9 12 Storage 16 | . 14 14 14 17 18 18 18 12 Processor 8 | . . 1 14 9 9 9 9 6 Protection 6 | . . . . 9 9 9 9 5 Ballistic Gun 3 | . 28 21 . 3 . . . . Launcher 16 | . . 6 28 14 18 17 17 16 Peak Build Rating 57 | 6 6 13 14 23 25 25 38 57 Average Rating 25 | 5 6 7 13 20 24 24 31 51 On Entrance 16 | . 6 6 13 13 23 25 25 38 Naked Turns . | . . . . . . . . . Heaviest Build 88 | 12 12 33 31 48 52 54 73 88 Greatest Support 91 | 40 40 40 40 60 60 60 73 91 Greatest Overweight (x) 2 | . . . 1 2 . . . 1 Average Overweight (x) . | . . . . 1 . . . . Largest Inventory Capacity 20 | 8 8 15 15 15 15 15 20 20 Average Capacity 15 | 7 8 13 15 14 15 15 15 19 Most Carried 20 | 8 8 15 15 15 15 15 20 20 Average Carried 14 | 4 7 10 14 13 14 14 15 18 Final Capacity 20 | 8 8 15 15 15 15 15 20 5 Final Carried 20 | 8 8 15 15 15 15 15 20 5 Class Distribution -------------------- 45% | Commander-Mutant 37% | Mutant 7% | Commander-Bomber 6% | Scavenger-Mutant Dominant Class ---------------- Mutant | -10/Materials Mutant | -10/Mines Mutant | -10/Subcaves Mutant | -8/Materials Scavenger-Mutant | -8/Storage Commander-Mutant | -8/Recycling Commander-Mutant | -8/Scraptown Commander-Bomber | -6/Factory Resources | -11 -10 -10 -10 -8 -8 -8 -8 -6 ----------- Run | Yrd Mat Min Sub Mat Sto Rec Scr Fac Matter Collected 2732 | 298 . 261 201 309 657 319 120 567 Remotely . | . . . . . . . . . Salvage Created 1820 | 82 . 41 243 333 563 228 . 330 Parts 131 | 3 . 2 15 33 41 6 . 31 Haulers Intercepted 4 | . . . . 3 1 . . . Recyclers Shooed 9 | . . 2 . . 4 . . 3 Parts Field Recycled . | . . . . . . . . . Retrieved Matter . | . . . . . . . . . Parts Self-Destructed 7 | . . . 7 . . . . . Prevented . | . . . . . . . . . Kills | -11 -10 -10 -10 -8 -8 -8 -8 -6 ------- Run | Yrd Mat Min Sub Mat Sto Rec Scr Fac Combat Hostiles Destroyed 59 | . . 6 11 6 23 1 . 12 Guns 2 | . . 1 . 1 . . . . Cannons 4 | . . . . . . 1 . 3 AOE 53 | . . 5 11 5 23 . . 9 Classes Destroyed 18 | 2 . 2 2 9 . . . 3 Worker 5 | 1 . . . 1 . . . 3 Builder 5 | . . 1 . 2 . . . 2 Tunneler 2 | . . . . 2 . . . . Hauler 4 | . . . . 3 1 . . . Recycler 4 | 1 . . . . 2 1 . . Mechanic 3 | . . . . 1 2 . . . Operator 1 | . . . . 1 . . . . Watcher 7 | . . . . 3 2 . . 2 Swarmer 11 | . . . 2 . 6 . . 3 Grunt 18 | . . . . 2 11 1 . 4 Duelist 1 | . . . . 1 . . . . Sentry 9 | . . . . 2 6 1 . . Specialist 2 | . . . . . . . . 2 Hunter 1 | . . . . 1 . . . . Programmer 2 | . . . . . . . . 2 Heavy 1 | . . . . . . . . 1 Subdweller 9 | . . . 9 . . . . . Assembled 6 | . . 6 . . . . . . Best Kill Streak 12 | 1 . 4 6 7 12 2 . 8 Combat Bots Only 9 | . . 4 6 3 9 1 . 5 Max Kills in Single Turn 4 | 1 . 2 2 4 4 1 . 3 Gunslinging . | . . . . . . . . . Exploded 3 | . . 2 2 1 3 . . 2 Melee . | . . . . . . . . . Uniques/NPCs Destroyed . | . . . . . . . . . Combat | -11 -10 -10 -10 -8 -8 -8 -8 -6 -------- Run | Yrd Mat Min Sub Mat Sto Rec Scr Fac Hostile Shots Fired 368 | . . 20 14 19 68 8 . 239 Missed 117 | . . 10 4 7 18 2 . 76 Damage Taken 4656 | . . 289 345 261 770 127 . 2864 Core 1268 | . . 67 149 59 129 13 . 851 Absorbed by Shields . | . . . . . . . . . Regen/Repaired (Parts) 389 | . . . . 322 67 . . . Core Remaining (%) 58 | 100 . . 13 . . . 63 . Volleys Fired 151 | 3 3 28 13 28 38 4 . 34 Largest 3 | 2 2 2 2 2 2 2 . 3 Hottest 149 | 40 40 50 60 70 69 80 . 149 Shots Fired 229 | 6 6 41 25 42 45 6 . 58 Gun 65 | 6 6 31 . 22 . . . . Cannon 23 | . . . . . . 2 . 21 Launcher 141 | . . 10 25 20 45 4 . 37 Special . | . . . . . . . . . Kinetic 91 | 6 6 31 . 36 12 . . . Thermal 23 | . . . . . . 2 . 21 Explosive 115 | . . 10 25 6 33 4 . 37 Electromagnetic . | . . . . . . . . . Robot Hit Streak 13 | 5 1 5 12 13 11 9 . 10 Robot Miss Streak 4 | . 2 4 . 2 1 1 . 1 Penetration Max . | . . . . . . . . . Secondary Targets 1 | . . 1 . . . . . . Max Gunslinging Chain 1 | . . 1 . . . . . . Shots Hit Robots 143 | 5 2 17 12 24 36 5 . 42 Core Hits 185 | 3 1 13 22 29 52 12 . 53 Critical Kills . | . . . . . . . . . Critical Parts Destroyed . | . . . . . . . . . Critical Strikes . | . . . . . . . . . Melee Attacks . | . . . . . . . . . Impact . | . . . . . . . . . Slashing . | . . . . . . . . . Piercing . | . . . . . . . . . Sneak Attacks . | . . . . . . . . . Combat Hostiles . | . . . . . . . . . Follow-up Attacks . | . . . . . . . . . Damage Inflicted 9992 | 60 22 537 983 1700 3031 425 . 3234 Guns 455 | 60 22 227 . 146 . . . . Cannons 546 | . . . . . . 55 . 491 Explosions 8891 | . . 285 983 1554 3027 311 . 2731 Melee . | . . . . . . . . . Ramming 100 | . . 25 . . 4 59 . 12 Kinetic 2037 | 60 22 227 . 1018 710 . . . Thermal 839 | . . . . 252 . 55 . 532 Explosive 7016 | . . 285 983 430 2317 311 . 2690 Electromagnetic . | . . . . . . . . . Impact . | . . . . . . . . . Slashing . | . . . . . . . . . Piercing . | . . . . . . . . . Highest Corruption 3 | . . . . . . 1 . 3 Average Corruption 1 | . . . . . . 1 . 2 Corruption Purged . | . . . . . . . . . Corruption Blocked . | . . . . . . . . . Effects 4 | . . . . . . 4 . . Message Errors 1 | . . . . . . 1 . . Matter Fused 2 | . . . . . . 2 . . Data Loss (minor) 1 | . . . . . . 1 . . Overload Shots . | . . . . . . . . . Overflow Damage 273 | . . . . 65 134 2 . 72 Projectiles . | . . . . . . . . . Explosions 273 | . . . . 65 134 2 . 72 Melee . | . . . . . . . . . Knockbacks . | . . . . . . . . . Impact . | . . . . . . . . . Kinetic . | . . . . . . . . . Secondary . | . . . . . . . . . Self-Inflicted Damage 317 | . . 112 2 83 26 42 . 52 Shots 12 | . . 3 1 4 2 1 . 1 Rammed 16 | . . 3 . . 1 11 . 1 Targets Rammed 17 | . . 3 . . 1 12 . 1 Kicked . | . . . . . . . . . Crushed 1 | . . . . . . 1 . . Highest Temperature 147 | . . . . 16 45 49 . 147 Average Temperature 33 | . . . . 8 13 18 . 50 Received Heat Transfer 714 | . . 9 30 81 387 36 . 171 Siege Activations . | . . . . . . . . . Robots Corrupted . | . . . . . . . . . Combat Hostiles . | . . . . . . . . . Parts Fried . | . . . . . . . . . Impact Corruptions . | . . . . . . . . . Robots Melted . | . . . . . . . . . Combat Hostiles . | . . . . . . . . . Parts Melted 3 | . . . 2 . . . . 1 Heat Transferred 786 | . . . . 200 . 74 . 512 Parts Sabotaged . | . . . . . . . . . Parts Stolen . | . . . . . . . . . Parts Stripped . | . . . . . . . . . Power Chain Reactions . | . . . . . . . . . Alert | -11 -10 -10 -10 -8 -8 -8 -8 -6 ------- Run | Yrd Mat Min Sub Mat Sto Rec Scr Fac Peak Influence 1213 | 10 28 74 . 439 1213 573 . 510 Initial 409 | . 6 10 . . 159 409 . . Average 262 | 4 9 39 . 137 840 479 . 139 Maximum Alert Level 4 | . . . . 2 4 2 . 2 Low Security (%) 58 | 100 100 100 . 73 2 . . 71 Level 1 7 | . . . . 24 . 9 . 11 Level 2 25 | . . . . 2 35 90 . 17 Level 3 5 | . . . . . 39 . . . Level 4 3 | . . . . . 22 . . . Level 5 . | . . . . . . . . . High Security . | . . . . . . . . . Max Security . | . . . . . . . . . Squads Dispatched 12 | . . . . 2 5 . . 5 Investigation 2 | . . . . . 2 . . . Extermination 2 | . . . . . . . . 2 Reinforcement 6 | . . . . 2 1 . . 3 Assault 1 | . . . . . 1 . . . Garrison 1 | . . . . . 1 . . . Intercept . | . . . . . . . . . Searches Triggered . | . . . . . . . . . Construction Impeded 3 | . . . . 2 . . . 1 Haulers Reinforced . | . . . . . . . . . Active Scanning Responses . | . . . . . . . . . Cargo Convoy Interrupts 1 | . . . . . . . . 1 Stealth | -11 -10 -10 -10 -8 -8 -8 -8 -6 --------- Run | Yrd Mat Min Sub Mat Sto Rec Scr Fac Distress Signals 3 | . . . . . 1 . . 2 Communications Jammed . | . . . . . . . . . Distress Signals . | . . . . . . . . . Times Spotted 99 | . 3 13 12 9 23 3 . 36 Peak Tracking Total 11 | . 2 5 4 3 8 1 . 11 Tactical Retreats 2 | . . 1 . . . . . 1 Traps | -11 -10 -10 -10 -8 -8 -8 -8 -6 ------- Run | Yrd Mat Min Sub Mat Sto Rec Scr Fac Traps Triggered 1 | . . . . . . . . 1 Indirectly . | . . . . . . . . . Trap Hack Attempts . | . . . . . . . . . Triggered . | . . . . . . . . . Disarmed . | . . . . . . . . . Reprogrammed . | . . . . . . . . . Reused . | . . . . . . . . . Traps Extracted . | . . . . . . . . . Installed . | . . . . . . . . . Triggered . | . . . . . . . . . Most Traps Carried 4 | . . 4 4 2 2 2 1 . Machines | -11 -10 -10 -10 -8 -8 -8 -8 -6 ---------- Run | Yrd Mat Min Sub Mat Sto Rec Scr Fac Machines Disabled 29 | . . 1 . 15 6 . . 7 Max in Single Turn 9 | . . 1 . 9 2 . . 2 Garrison Access 2 | . . . . . 1 . . 1 Machines Repaired . | . . . . . . . . . Machines Dismantled 2 | . . . . . . . . 2 Machines Sabotaged . | . . . . . . . . . Overloaded Fab Kills . | . . . . . . . . . Hacking | -11 -10 -10 -10 -8 -8 -8 -8 -6 --------- Run | Yrd Mat Min Sub Mat Sto Rec Scr Fac Machines Accessed 22 | . 1 . . 3 3 8 3 4 Terminals 9 | . 1 . . 2 1 3 . 2 Fabricators 1 | . . . . . . . . 1 Repair Stations 2 | . . . . 1 1 . . . Recycling Units 6 | . . . . . 1 5 . . Scanalyzers . | . . . . . . . . . Garrison Access 1 | . . . . . . . . 1 Total Hacks 71 | . 2 . . 12 9 27 13 8 Successful 52 | . 1 . . 10 6 18 13 4 Failed 19 | . 1 . . 2 3 9 . 4 Catastrophic 2 | . 1 . . 1 . . . . Database Lockouts . | . . . . . . . . . Manual 24 | . . . . 3 6 12 . 3 Terminals 30 | . 2 . . 6 5 12 . 5 Fabricators 1 | . . . . . . . . 1 Repair Stations 7 | . . . . 6 1 . . . Recycling Units 18 | . . . . . 3 15 . . Scanalyzers . | . . . . . . . . . Garrison Access 2 | . . . . . . . . 2 Terminal Hacks 25 | . 1 . . 3 3 3 13 2 Record 13 | . . . . . . . 13 . Prototype ID Bank 2 | . . . . . . 2 . . Branch Access Points 2 | . . . . . 1 . . 1 Alert Level 2 | . . . . . 1 1 . . Unreport Threat 2 | . . . . 1 1 . . . Locate Traps 2 | . . . . 1 . . . 1 Registered Components 2 | . 1 . . 1 . . . . Fabricator Hacks . | . . . . . . . . . Repair Station Hacks 6 | . . . . 6 . . . . Scan Component 3 | . . . . 3 . . . . Repair 3 | . . . . 3 . . . . Recycling Unit Hacks 12 | . . . . . 2 10 . . Process 3 | . . . . . 1 2 . . Report Inventory 5 | . . . . . . 5 . . Retrieve Matter 3 | . . . . . 1 2 . . Retrieve Components 1 | . . . . . . 1 . . Scanalyzer . | . . . . . . . . . Garrison Access Hacks 1 | . . . . . . . . 1 Seal Access 1 | . . . . . . . . 1 Unauthorized Hacks 8 | . . . . 1 1 5 . 1 Terminals 3 | . . . . 1 . 1 . 1 Botnet 3 | . . . . 1 . 1 . 1 Fabricators . | . . . . . . . . . Repair Stations 1 | . . . . . 1 . . . Patch 1 | . . . . . 1 . . . Recycling Units 4 | . . . . . . 4 . . Tunnel 4 | . . . . . . 4 . . Scanalyzers . | . . . . . . . . . Garrison Access . | . . . . . . . . . Data Cores Recovered . | . . . . . . . . . Used . | . . . . . . . . . Hacking Detections 12 | . 1 . . 3 . 4 . 4 Full Trace Events 4 | . 1 . . . . 3 . . Feedback Events 1 | . . . . . . 1 . . Corruption 1 | . . . . . . 1 . . Feedback Blocked . | . . . . . . . . . Robot Schematics Acquired . | . . . . . . . . . Robots Built . | . . . . . . . . . Authchips . | . . . . . . . . . Time . | . . . . . . . . . Total Robot Build Rating . | . . . . . . . . . Part Schematics Acquired . | . . . . . . . . . Parts Built . | . . . . . . . . . Authchips . | . . . . . . . . . Time . | . . . . . . . . . Total Part Build Rating . | . . . . . . . . . Parts Repaired 3 | . . . . 3 . . . . Time 78 | . . . . 78 . . . . Parts Recycled . | . . . . . . . . . Recycled Matter 122 | . . . . . 99 23 . . Retrieved Matter 122 | . . . . . 99 23 . . Retrieved Components 3 | . . . . . . 3 . . Parts Scanalyzed . | . . . . . . . . . Part Schematics Acquired . | . . . . . . . . . Parts Damaged . | . . . . . . . . . Bothacking | -11 -10 -10 -10 -8 -8 -8 -8 -6 ------------ Run | Yrd Mat Min Sub Mat Sto Rec Scr Fac Used RIF Installer . | . . . . . . . . . Robots Hacked . | . . . . . . . . . Non-combat . | . . . . . . . . . Combat . | . . . . . . . . . Robot Hacks Applied . | . . . . . . . . . Relay Couplers Released . | . . . . . . . . . Fabnet Peak Effective % . | . . . . . . . . . Robots Rewired . | . . . . . . . . . Allies Hacked . | . . . . . . . . . Hacks Repelled . | . . . . . . . . . Allies | -11 -10 -10 -10 -8 -8 -8 -8 -6 -------- Run | Yrd Mat Min Sub Mat Sto Rec Scr Fac Total Allies 14 | . . 4 . . 10 . . . Largest Group 10 | . . 4 2 . 10 8 7 7 Highest-Rated Group 173 | . . 71 29 . 173 141 125 125 Highest-Rated Ally 31 | . . 31 16 . 29 29 29 29 Total Orders . | . . . . . . . . . Ally Attacks 146 | . . 43 5 . 25 9 . 64 Total Damage 1642 | . . 423 51 . 288 141 . 739 Kills 19 | . . 7 . . 4 2 . 6 Allies Corrupted 1 | . . . . . . . . 1 Allies Melted . | . . . . . . . . . Intel | -11 -10 -10 -10 -8 -8 -8 -8 -6 ------- Run | Yrd Mat Min Sub Mat Sto Rec Scr Fac Robot Analysis Total . | . . . . . . . . . Derelict Logs Recovered 6 | . . 2 1 . . . 3 . Drone Launches . | . . . . . . . . . Drone Recoveries . | . . . . . . . . . Exploration | -11 -10 -10 -10 -8 -8 -8 -8 -6 ------------- Run | Yrd Mat Min Sub Mat Sto Rec Scr Fac Turns Passed 6993 | 142 160 919 944 555 514 692 2294 773 Spaces Moved 4141 | 74 91 510 746 260 247 396 1411 406 Core 39 | 4 . . . . . . . 35 Treads 3201 | 63 91 510 45 67 247 396 1411 371 Legs . | . . . . . . . . . Wheels 901 | 7 . . 701 193 . . . . Hover . | . . . . . . . . . Flight . | . . . . . . . . . Fastest Speed 50 | 50 160 160 115 130 160 160 148 50 Average Speed 149 | 148 160 160 118 138 160 160 159 146 Slowest Speed 240 | 160 160 160 240 240 160 160 160 240 Overloaded Moves . | . . . . . . . . . Propulsion Burnouts . | . . . . . . . . . Robots Hopped . | . . . . . . . . . Cave-ins Triggered . | . . . . . . . . . Exploration Rate (%) 48 | 5 23 98 58 25 49 78 85 16 Regions Visited 8 Branch Regions 5 Pre-discovered Areas 7 | . . . 1 . . 4 2 . Known Exits Taken 2 | . . . . 1 1 . . . Unknown Exits Taken 6 | 1 1 1 1 . . 1 1 . Scrap Searched 8 | . . 1 2 . . . 5 . Spaces Dug 6 | . . 6 . . . . . . Terrain Destroyed 962 | . . 76 108 281 298 42 . 157 Melee . | . . . . . . . . . Projectile 2 | . . . . . . . . 2 AOE 960 | . . 76 108 281 298 42 . 155 Terrain Rammed . | . . . . . . . . . Walls Destroyed . | . . . . . . . . . Machines Disabled . | . . . . . . . . . Actions | -11 -10 -10 -10 -8 -8 -8 -8 -6 --------- Run | Yrd Mat Min Sub Mat Sto Rec Scr Fac Total 4681 | 96 101 568 781 411 317 441 1463 503 Wait 191 | 4 2 11 10 87 20 20 26 11 Move 4133 | 73 90 509 745 259 246 395 1410 406 Hop . | . . . . . . . . . Pick Up 54 | 8 3 7 5 15 2 2 8 4 Fast Attach 15 | 6 . 3 . 5 . . 1 . Attach 18 | . . . 1 2 2 . . 13 Detach . | . . . . . . . . . Swap 41 | 2 . 4 2 8 4 4 8 9 Drop 47 | . 3 3 5 7 4 3 10 12 Fire 151 | 3 3 28 13 28 38 4 . 34 Melee . | . . . . . . . . . Ram . | . . . . . . . . . Kick . | . . . . . . . . . Crush 17 | . . 3 . . 1 12 . 1 Escape Stasis . | . . . . . . . . . Rewire 1 | . . . . . . 1 . . Trap . | . . . . . . . . . Miscellaneous 13 | . . . . . . . . 13 Route ------- -11/Scrapyard -10/Materials (discovered 2 exits: [*Min x2]) -10/Mines (discovered 3 exits: [*Mat x2] / [*Sub]) -10/Subcaves -8/Materials -8/Storage (discovered 2 exits: [*Fac] / *Rec) -8/Recycling -8/Scraptown (discovered 2 exits: *Fac x2) -6/Factory (discovered 5 exits: Fac / Low x2 / Ext x2) History --------- Turn | Location | Event 13 | -11/Scrapyard | Discovered new exit (range 15) 143 | -11/Scrapyard | Entered Materials 169 | -10/Materials | Discovered new exit (range 15) 287 | -10/Materials | Discovered new exit (range 9) 303 | -10/Materials | Entered Mines 305 | -10/Mines | Build established: Mutant 306 | -10/Mines | Received a Mining Laser from a helpful Derelict 314 | -10/Mines | Discovered new exit (range 11) 526 | -10/Mines | Assisted by bots powering up and referring to "LRC-V3" 574 | -10/Mines | Discovered new exit (range 3) 577 | -10/Mines | Learned 2 Materials zone layouts 712 | -10/Mines | Found a hidden stash of uninstalled traps 729 | -10/Mines | Assembled infested the area 1212 | -10/Mines | Discovered new exit (range 4) 1222 | -10/Mines | Entered Subcaves 1222 | -10/Subcaves | Accompanied by 2 allies 1226 | -10/Subcaves | Learned location of Zion (-7) 1264 | -10/Subcaves | Ambushed by Subdwellers from Twisted Machinery 1285 | -10/Subcaves | Core integrity fell below 50% 1311 | -10/Subcaves | Ambushed by Subdweller buried in earth 1393 | -10/Subcaves | Shifting Twisted Machinery released Flamer 1400 | -10/Subcaves | Shifting Twisted Machinery released Flamer 1530 | -10/Subcaves | A swath of the cavern ceiling suddenly collapsed 2084 | -10/Subcaves | Core integrity fell below 20% 2145 | -10/Subcaves | A swath of the cavern ceiling suddenly collapsed 2160 | -10/Subcaves | Discovered new exit (range 6) 2166 | -10/Subcaves | Entered Materials 2166 | -8/Materials | Evolved 4 slots: Propulsion x1, Utility x3 2167 | -8/Materials | Identified exit to Storage 2229 | -8/Materials | Repaired Grenade Launcher 2255 | -8/Materials | Repaired Lgt. Treads 2282 | -8/Materials | Repaired Lrg. Storage Unit 2721 | -8/Materials | Entered Storage 2876 | -8/Storage | Build established: Scavenger-Mutant 2965 | -8/Storage | Destroyed 9 combat bots 3031 | -8/Storage | Assisted by bots powering up and referring to "LRC-V3" 3095 | -8/Storage | Identified exit to Recycling 3101 | -8/Storage | Discovered new exit (range 15) 3215 | -8/Storage | Used back door to open Recycling access 3235 | -8/Storage | Entered Recycling 3235 | -8/Recycling | Accompanied by 8 allies 3328 | -8/Recycling | Build established: Commander-Mutant 3815 | -8/Recycling | Scanned before Scraplab entrance 3902 | -8/Recycling | Entered Scraplab 3916 | -8/Recycling | Discovered new exit (range 3) 3927 | -8/Recycling | Entered Scraptown 3927 | -8/Scraptown | Accompanied by 7 allies 3927 | -8/Scraptown | System corruption cleaned by C-Scrubber 4081 | -8/Scraptown | Heard Great Nut preacher, LISTEN AND RECITE! 4263 | -8/Scraptown | Discovered new exit (range 13) 4284 | -8/Scraptown | Scanned Subdweller tech in exchange for log data 4294 | -8/Scraptown | Learned location of Testing (-3) 4296 | -8/Scraptown | Learned Research security intel 4298 | -8/Scraptown | Learned location of 2 exits from Factory 4349 | -8/Scraptown | Visited Red Mages 4410 | -8/Scraptown | Visited UFD Registry 4410 | -8/Scraptown | Registered with UFD as "Biopod" 4443 | -8/Scraptown | Visited Assassins FH 4699 | -8/Scraptown | Visited LU-1G1's Boring Crew 4776 | -8/Scraptown | Visited Scrapoid Research Area 4813 | -8/Scraptown | Visited Observation Area 4874 | -8/Scraptown | Visited Curators Association 4910 | -8/Scraptown | Visited Derelict Rescue Squad 4923 | -8/Scraptown | Found DRS Beacon 4955 | -8/Scraptown | Visited DA-N13 Charitable Foundation 4979 | -8/Scraptown | Visited Infowarlord's Domain 5007 | -8/Scraptown | Visited Abandonware Association 5037 | -8/Scraptown | Learned abandonware demo "TRNCOAT.EXE" 5080 | -8/Scraptown | Visited Cartography Club 5456 | -8/Scraptown | Visited CPS Storage 5597 | -8/Scraptown | Delivered Scrap Shield to a Scientist 5840 | -8/Scraptown | Found DCF Scrap (29 items) 5940 | -8/Scraptown | Visited Chapter 10 6065 | -8/Scraptown | Found Scrap Suit 6068 | -8/Scraptown | Found Scrap Suit 6087 | -8/Scraptown | Discovered new exit (range 5) 6152 | -8/Scraptown | Found Spectral Analyzer 6221 | -8/Scraptown | Entered Factory 6221 | -6/Factory | Accompanied by 7 allies 6221 | -6/Factory | Evolved 4 slots: Propulsion x1, Utility x2, Weapon x1 6222 | -6/Factory | Identified exit to Lower Caves 6222 | -6/Factory | Identified exit to Factory 6256 | -6/Factory | Identified exit to Extension 6515 | -6/Factory | Build established: Commander-Bomber 6837 | -6/Factory | Lost 3 parts (3w) 6847 | -6/Factory | Lost 3 allies 6940 | -6/Factory | Cargo convoy interrupted 6978 | -6/Factory | Core integrity fell below 50% 6983 | -6/Factory | Core integrity fell below 20% 6994 | -6/Factory | Destroyed by Tesla Bomb Trap Last Messages --------------- 06983_ Penetrated by Slug. 06983_ R-10 Processor destroyed. 06983_ R-10 Processor collects Imp. Medium Armor Plating. 06983_ Penetrated by Slug. 06984_ Imp. Heat Sink destroyed. 06984_ Acquired 80 matter. 06985_ Extracted 50 matter. 06985_ K-01 Serf cleans the Pressure Siphon. 06987_ R-10 Processor inserts Hvy. Laser into recycling unit. 06989_ K-01 Serf cleans the Pressure Siphon. 06990_ R-10 Processor inserts Carbon-fiber Leg into recycling unit. 06993_ K-01 Serf cleans the Pressure Siphon. 06993_ R-10 Processor inserts Imp. Signal Interpreter into recycling unit. 06994_ Triggered Tesla Bomb Trap. 06994_ A bubble of electromagnetic force engulfs the area. Map ----- +----------------------------------------------------+ | ?????????????????????????????? | | % ????????????????????????????? | | % ????????????????????????????? | | % ???????????????????????????? | | # # = # % #????????????????????????????? | | " #?# ???????????????????????????????? | | " # " ##?# ???????????????????????????????? | | "" #"/#"######## ???????????????????????????????? | | F" # ! # ???????????????????????????????? | | "" # */* !# ???????????????????????????????? | | " # !!*! # #####??????????????????????????? | | # ! # #??????????????????????????? | | # =# #??????????????????????????? | | "" # *+% #??????????????????????????? | | "" # !| # +??????????????????????????? | | ?" # = # #??????????????????????????? | | ? # # #??????????????????????????? | | ??## # #??????????????????????????? | | ???# # #??????????????????????????? | | ???# # #??????????????????????????? | | ???###"########## #??????????????????????????? | | ?????# #????????# #??????????????????????????? | | ?????# #????????# #????#?????????????????????? | | ?????#!#????????# #??? #?????????????????????? | | ?????#=#?########R #### ###########???????????? | | ????## ### @ u ? | | ????#!=! ^ ? | | ????# = "" ?? | | ""R R ?? | | ## ####### "Y ?? | | ?#?????# "" ###################### ??? | | ???????# "" ^ !! #?????????????????????????? | | ???????# !! #?????????????????????????? | | ???????# """" !! #?????????????????????????? | | ???????# """" #?????????????????????????? | | ???????# """" #?????????????????????????? | | ???????# k ????????????????????????? | | ???????# ???H???????????????????? | | ???????# ??????????????????????? | | ???????# ##########+### ?????????????????????? | | ???????## #?????????????? ????????????????????? | | ????????# #??????????????? ???????????????????? | | ????????# #???????????????????????????????????? | | ????????+ #???????????????????????????????????? | | ????????# #???????????????????????????????????? | | ????????# #???????????????????????????????????? | | ????????# #???????????????????????????????????? | | ????????? ????????????????????????????????????? | | ????????? ????????????????????????????????????? | | ????????? ????????????????????????????????????? | +----------------------------------------------------+ Best States ------------- Heat Dissipation 51 Energy Generation 18 Energy Capacity 300 Matter Stores 550 Matter Capacity 550 Sight Range 24 Robot Scan Range 16 Terrain Scan Density 10 Armor Coverage 225 Evasion (%) 50 Targeting Accuracy 8 Launcher Accuracy 20 Recoil Reduction 4 Item Schematics ----------------- None Robot Schematics ------------------ None Fabricated ------------ Nothing Alien Tech Used ----------------- None Achievements -------------- None Challenges ------------ None Game ------ Seed RecyclingCoreBooster Manual? 0 Play Time 01:01:42 Cumulative 122.8 hours Start 2024.11.24 @ 21:08:33 End 2024.11.24 @ 22:11:07 Sessions 1 Manual Loads 0 Difficulty Rogue Special Mode None Game No. 68 Rogue 68 Adventurer 0 Explorer 0 Win Type - Total 2 Types 2/0/0/0/0/0/0/0/0 Lore% 45 Gallery% 63 Achievement% 54 Wizard Run 0 Options --------- Layout 1 ASCII 0 Keyboard 0 Movement Mouse Keybinds 0 Fullscreen 1 Font 24/Smallcaps Map View 50x35 Zoom Use 0% Tactical HUD 1 Map Filters NONE Filters NONE Steam 1 RUN: 7276bf74-95d4-4345-b6c0-1c84fcbb1486